bitfinex-derivatives/quotes_BTCF0:USTF0_20250509
["timestamp","ask_amount","ask_price","bid_price","bid_amount"]
[1746748802364,0.2586,103290.0,103280.0,0.3983]
[1746748802662,0.2586,103290.0,103280.0,0.4908]
[1746748802863,0.6194,103290.0,103270.0,0.00729321]
[1746748803054,0.1992,103280.0,103260.0,0.72191419]
[1746748803357,0.1328,103270.0,103260.0,1.54560969]
[1746748803662,0.2628,103270.0,103260.0,1.51370969]
[1746748804163,0.2628,103270.0,103260.0,1.31690969]
[1746748804462,0.2628,103270.0,103260.0,1.07922973]
[1746748805162,0.2628,103270.0,103260.0,1.27922973]
[1746748805358,0.2628,103270.0,103260.0,1.88038973]
[1746748805552,0.2628,103270.0,103260.0,1.81278973]
[1746748805957,0.2628,103270.0,103260.0,1.44898973]
[1746748806255,0.4228,103270.0,103260.0,1.29358973]
[1746748806459,0.4228,103270.0,103260.0,1.71998973]
[1746748807060,0.4228,103270.0,103260.0,1.72264147]
[1746748807266,0.2628,103270.0,103260.0,1.88464147]
[1746748808964,0.2628,103270.0,103260.0,1.86464147]
[1746748809166,0.2628,103270.0,103260.0,1.76213681]
[1746748809465,0.2628,103270.0,103260.0,0.99117681]
[1746748809664,0.6872767,103270.0,103260.0,0.36808131]
[1746748809968,0.1936955,103260.0,103250.0,0.48675186]
[1746748810172,0.8644955,103260.0,103250.0,0.48675186]
[1746748810464,0.6708,103260.0,103250.0,0.48675186]
[1746748811167,0.31,103260.0,103250.0,0.49404259]
[1746748811377,0.31,103260.0,103250.0,0.55774259]
[1746748811570,0.6708,103260.0,103250.0,0.49804259]
[1746748811771,0.6708,103260.0,103250.0,0.58512259]
[1746748812271,0.5108,103260.0,103250.0,0.58812259]
[1746748812572,0.15,103260.0,103250.0,0.58812259]
[1746748812777,0.5108,103260.0,103250.0,0.65512259]
[1746748813272,0.7098,103260.0,103250.0,0.65512259]
[1746748814159,0.7098,103260.0,103250.0,0.34350653]
[1746748814160,0.9034955,103260.0,103250.0,0.34350653]
[1746748814359,0.7098,103260.0,103250.0,0.34350653]
[1746748814876,0.349,103260.0,103250.0,0.41050653]
[1746748815061,0.7098,103260.0,103250.0,0.47760653]
[1746748815470,0.7098,103260.0,103250.0,0.54330653]
[1746748816171,0.71222,103260.0,103250.0,0.54330653]
[1746748816567,0.64582,103260.0,103250.0,0.54330653]
[1746748816765,0.00242,103260.0,103250.0,0.99050653]
[1746748816965,1.0399,103290.0,103280.0,0.193658]
[1746748816966,1.1055,103290.0,103280.0,0.193658]
[1746748817161,1.2355,103290.0,103280.0,0.440458]
[1746748817368,1.4291392,103290.0,103280.0,0.16]
[1746748817562,1.7759592,103290.0,103280.0,0.16]
[1746748818168,2.1205702,103290.0,103270.0,0.338921]
[1746748818376,0.496,103280.0,103270.0,0.338921]
[1746748818674,0.636,103280.0,103270.0,0.338921]
[1746748819683,0.637,103280.0,103270.0,0.338921]
[1746748821069,0.638,103280.0,103270.0,0.338921]
[1746748821574,0.8800743,103280.0,103260.0,0.1598453]
[1746748821777,0.8002959,103270.0,103250.0,0.16874363]
[1746748821974,0.7671767,103270.0,103260.0,0.1936955]
[1746748822173,0.9343,103270.0,103260.0,0.1936955]
[1746748822977,0.9343,103270.0,103260.0,0.2606955]
[1746748823175,0.5735,103270.0,103260.0,0.2606955]
[1746748823480,0.5735,103270.0,103260.0,0.3245955]
[1746748824280,0.5735,103270.0,103260.0,0.3255955]
[1746748825076,0.5108,103270.0,103260.0,0.5555955]
[1746748825277,0.5108,103270.0,103260.0,0.7255955]
[1746748825473,0.3608,103280.0,103270.0,0.1936767]
[1746748825783,0.13,103280.0,103270.0,1.5250367]
[1746748825976,0.0565215,103280.0,103270.0,1.7350367]
[1746748826179,0.121,103300.0,103290.0,0.1936392]
[1746748826373,0.131,103300.0,103290.0,0.28676273]
[1746748826573,0.131,103300.0,103290.0,0.41846273]
[1746748827184,0.131,103300.0,103290.0,0.57846273]
[1746748827375,0.131,103300.0,103290.0,0.29842353]
[1746748827576,0.7822325,103300.0,103290.0,0.16672353]
[1746748827779,0.8490325,103300.0,103290.0,0.16672353]
[1746748828080,1.7781325,103300.0,103290.0,0.16672353]
[1746748828278,1.9381325,103300.0,103290.0,0.00672353]
[1746748828673,1.9411325,103300.0,103290.0,0.00672353]
[1746748828874,1.9621325,103300.0,103290.0,0.00672353]
[1746748829583,1.72163008,103300.0,103290.0,0.20036273]
[1746748829877,1.7121325,103300.0,103290.0,0.20032888]
[1746748830273,1.7121325,103300.0,103290.0,0.1936392]
[1746748831580,0.1936392,103290.0,103280.0,0.14670275]
[1746748831780,0.7708392,103290.0,103280.0,0.34036075]
[1746748831979,0.193658,103280.0,103260.0,0.1113236]
[1746748832284,0.193658,103280.0,103260.0,0.2421047]
[1746748832285,1.0470767,103270.0,103260.0,0.2421047]
[1746748832481,1.1770767,103270.0,103260.0,0.2421047]
[1746748832784,1.36031671,103270.0,103260.0,0.20838132]
[1746748833176,1.52031671,103270.0,103260.0,0.20838132]
[1746748833376,1.52031671,103270.0,103260.0,0.20938132]
[1746748834887,1.52031671,103270.0,103260.0,0.01569862]
[1746748835385,1.52031671,103270.0,103260.0,0.01669862]
[1746748835886,1.77031671,103270.0,103260.0,0.01693722]
[1746748836188,1.52031671,103270.0,103260.0,0.01693722]
[1746748838284,1.60711671,103270.0,103260.0,0.01693722]
[1746748838483,1.60711671,103270.0,103260.0,0.01493722]
[1746748838688,1.60911671,103270.0,103260.0,0.01493722]
[1746748839584,1.43591671,103270.0,103260.0,0.01493722]
[1746748839885,1.53307671,103270.0,103260.0,0.01493722]
[1746748840384,0.1937142,103250.0,103240.0,0.14349227]
[1746748840579,1.0653142,103250.0,103240.0,0.33722527]
[1746748840780,1.1995142,103250.0,103240.0,0.33722527]
[1746748840985,1.1463702,103250.0,103240.0,0.00999227]
[1746748841288,1.4463702,103250.0,103240.0,0.00999227]
[1746748841483,1.4463702,103250.0,103240.0,0.00290571]
[1746748841788,1.4463702,103250.0,103240.0,0.00990571]
[1746748842196,1.4463702,103250.0,103240.0,0.20363871]
[1746748842382,1.4463702,103250.0,103240.0,0.07550571]
[1746748842987,1.4463702,103250.0,103240.0,0.07250571]
[1746748843188,1.4463702,103250.0,103240.0,0.07050571]
[1746748843488,1.4463702,103250.0,103240.0,0.26423871]
[1746748843686,1.5335302,103250.0,103240.0,0.32733871]
[1746748843990,1.5135302,103250.0,103240.0,0.32733871]
[1746748844380,1.3491742,103250.0,103240.0,0.33463415]
[1746748845289,1.4151742,103250.0,103240.0,0.33463415]
[1746748855084,1.4151742,103250.0,103240.0,0.14090115]
[1746748855394,1.4351742,103250.0,103240.0,0.07780115]
[1746748855589,1.5028742,103250.0,103240.0,0.07780115]
[1746748856594,1.5997302,103250.0,103240.0,0.07780115]
[1746748857896,1.5028742,103250.0,103240.0,0.07780115]
[1746748858195,1.5997302,103250.0,103240.0,0.14010115]
[1746748863000,1.5028742,103250.0,103240.0,0.14010115]
[1746748863201,1.5997302,103250.0,103240.0,0.14010115]
[1746748863799,1.6874502,103250.0,103240.0,0.01220115]
[1746748864098,1.6874502,103250.0,103240.0,0.13570571]
[1746748865099,2.3665502,103250.0,103240.0,0.13570571]
[1746748865400,2.3665502,103250.0,103240.0,0.15063556]
[1746748865903,2.3665502,103250.0,103240.0,0.08643556]
[1746748866215,1.6774502,103250.0,103240.0,6e-08]
[1746748866902,0.55453294,103240.0,103230.0,0.0314087]
[1746748867207,0.1937518,103230.0,103220.0,0.1311]
[1746748867494,0.8946518,103230.0,103220.0,0.1311]
[1746748867701,0.9915278,103230.0,103220.0,0.1311]
[1746748868095,1.1515278,103230.0,103220.0,0.1311]
[1746748868291,1.1515278,103230.0,103220.0,0.001]
[1746748868493,1.2300078,103230.0,103220.0,1e-07]
[1746748869596,0.1937705,103220.0,103210.0,0.14960945]
[1746748869904,0.91808449,103220.0,103210.0,0.14960945]
[1746748870103,1.17496849,103220.0,103210.0,0.14960945]
[1746748870896,1.18196849,103220.0,103210.0,0.21320945]
[1746748871304,1.18196849,103220.0,103210.0,0.14960945]
[1746748871706,1.18196849,103220.0,103210.0,0.0029067]
[1746748873203,1.08508449,103220.0,103210.0,0.0029067]
[1746748873406,1.18196849,103220.0,103210.0,0.0029067]
[1746748873605,1.18196849,103220.0,103210.0,0.1329067]
[1746748873902,1.86106849,103220.0,103210.0,0.1329067]
[1746748874798,1.94922849,103220.0,103210.0,0.0029067]
[1746748875399,1.94922849,103220.0,103210.0,1e-07]
[1746748877003,1.2336892,103210.0,103200.0,0.22966898]
[1746748877206,1.7086892,103210.0,103200.0,0.22966898]
[1746748877404,1.80558521,103210.0,103200.0,0.22966898]
[1746748878204,1.80658521,103210.0,103200.0,0.22966898]
[1746748878605,1.81058521,103210.0,103200.0,0.22966898]
[1746748880709,1.81058521,103210.0,103200.0,8e-08]
[1746748880906,0.1938081,103200.0,103190.0,0.06917373]
[1746748881105,1.0818281,103200.0,103190.0,0.06917373]
[1746748881306,1.0818281,103200.0,103190.0,0.0618]
[1746748882910,1.0838281,103200.0,103190.0,0.0618]
[1746748883310,1.0888281,103200.0,103190.0,0.0618]
[1746748883908,1.0888281,103200.0,103190.0,0.1906]
[1746748884114,1.0878281,103200.0,103190.0,0.1906]
[1746748884411,0.9374081,103200.0,103190.0,0.1906]
[1746748884610,1.0260881,103200.0,103190.0,0.1906]
[1746748884811,0.9582881,103200.0,103190.0,0.3844269]
[1746748885006,0.8696081,103200.0,103190.0,0.3944269]
[1746748885310,0.9582881,103200.0,103190.0,0.2006]
[1746748886313,0.9582881,103200.0,103190.0,0.3706]
[1746748887813,0.74448,103200.0,103190.0,0.5644269]
[1746748888211,0.7469,103200.0,103190.0,0.3944269]
[1746748888818,0.8147,103200.0,103190.0,0.3944269]
[1746748889211,0.8147,103200.0,103190.0,0.3844269]
[1746748889813,0.8107,103200.0,103190.0,0.3844269]
[1746748890014,0.8147,103200.0,103190.0,0.3844269]
[1746748890412,0.8117,103200.0,103190.0,0.3844269]
[1746748890611,1.0105081,103200.0,103190.0,0.3844269]
[1746748891012,0.8167,103200.0,103190.0,0.3844269]
[1746748894218,0.72802,103200.0,103190.0,0.3844269]
[1746748898323,0.9418281,103200.0,103190.0,0.3844269]
[1746748898626,1.0051281,103200.0,103190.0,0.3844269]
[1746748900633,1.0051281,103200.0,103190.0,0.39952281]
[1746748902827,0.9418281,103200.0,103190.0,0.39952281]
[1746748903026,0.83558,103200.0,103190.0,0.62952281]
[1746748903229,1.0293881,103200.0,103190.0,0.43952281]
[1746748904422,0.9418281,103200.0,103190.0,0.43952281]
[1746748904627,1.0293881,103200.0,103190.0,0.43952281]
[1746748905127,1.0293881,103200.0,103190.0,0.39952281]
[1746748905324,1.0949881,103200.0,103190.0,0.39952281]
[1746748906028,1.1616881,103200.0,103190.0,0.39952281]
[1746748909629,1.1616881,103200.0,103190.0,0.33772281]
[1746748910529,1.1616881,103200.0,103190.0,0.3226269]
[1746748910732,0.1938269,103190.0,103180.0,0.36144433]
[1746748910919,0.8144269,103190.0,103180.0,0.42644433]
[1746748911124,0.9744269,103190.0,103180.0,0.42644433]
[1746748912018,0.9764269,103190.0,103180.0,0.42644433]
[1746748912427,0.9764269,103190.0,103180.0,0.1938341]
[1746748913637,0.9794269,103190.0,103180.0,0.1938341]
[1746748914835,0.1938457,103180.0,103170.0,0.50738744]
[1746748915029,0.9139057,103180.0,103170.0,0.69738744]
[1746748915328,1.0739057,103180.0,103170.0,0.50738744]
[1746748915627,1.0739057,103180.0,103170.0,0.49285744]
[1746748915833,1.0749057,103180.0,103170.0,0.49285744]
[1746748916233,1.0773257,103180.0,103170.0,0.50738744]
[1746748916935,1.0783257,103180.0,103170.0,0.50738744]
[1746748917132,0.88448,103180.0,103170.0,0.69738744]
[1746748917529,1.0123257,103180.0,103170.0,0.69738744]
[1746748918129,1.0123257,103180.0,103170.0,0.50738744]
[1746748919234,0.65848,103180.0,103170.0,0.83738744]
[1746748919436,0.8523257,103180.0,103170.0,0.83738744]
[1746748920643,0.50522,103180.0,103170.0,1.13738744]
[1746748921743,0.48522,103180.0,103170.0,1.20738744]
[1746748922740,0.50796,103180.0,103170.0,1.20738744]
[1746748924441,0.57386,103180.0,103170.0,1.20738744]
[1746748928441,0.50796,103180.0,103170.0,1.20738744]
[1746748930649,0.57706,103180.0,103170.0,1.20738744]
[1746748931750,0.7709057,103180.0,103170.0,0.66738744]
[1746748932146,0.8362057,103180.0,103170.0,0.66738744]
[1746748933847,0.61962,103180.0,103170.0,0.66738744]
[1746748934038,0.55432,103180.0,103170.0,0.86738744]
[1746748934846,0.6436,103180.0,103170.0,0.86738744]
[1746748936649,0.8374457,103180.0,103170.0,0.86738744]
[1746748936946,0.6436,103180.0,103170.0,0.86738744]
[1746748937447,0.57706,103180.0,103170.0,0.86738744]
[1746748937647,0.66634,103180.0,103170.0,0.86738744]
[1746748939837,0.67034,103180.0,103170.0,0.86738744]
[1746748940952,0.73804,103180.0,103170.0,0.86738744]
[1746748941348,0.64876,103180.0,103170.0,0.86738744]
[1746748941556,0.73804,103180.0,103170.0,0.86738744]
[1746748951258,0.9318857,103180.0,103170.0,0.86738744]
[1746748951453,1.0010857,103180.0,103170.0,0.83738744]
[1746748953359,0.80724,103180.0,103170.0,0.83738744]
[1746748953760,0.80724,103180.0,103170.0,0.66738744]
[1746748953956,1.0010857,103180.0,103170.0,0.66738744]
[1746748954656,0.9318857,103180.0,103170.0,0.61892184]
[1746748954853,0.9971857,103180.0,103170.0,0.55262184]
[1746748955161,0.9971857,103180.0,103170.0,0.39262184]
[1746748956254,0.9971857,103180.0,103170.0,0.55262184]
[1746748956856,0.39196,103180.0,103170.0,0.61752184]
[1746748957057,0.54196,103180.0,103170.0,1.19752184]
[1746748957461,0.61006,103180.0,103170.0,1.19752184]
[1746748957862,0.61206,103180.0,103170.0,1.19752184]
[1746748958870,0.61106,103180.0,103170.0,1.19752184]
[1746748959451,0.60806,103180.0,103170.0,1.19752184]
[1746748959656,0.61106,103180.0,103170.0,1.19752184]
[1746748960160,0.54296,103180.0,103170.0,1.19752184]
[1746748960465,0.54296,103180.0,103170.0,1.19769225]
[1746748961059,0.53996,103180.0,103170.0,1.19769225]
[1746748961262,0.54196,103180.0,103170.0,1.19769225]
[1746748962163,0.53796,103180.0,103170.0,1.19769225]
[1746748962365,0.54096,103180.0,103170.0,1.19769225]
[1746748963765,0.61076,103180.0,103170.0,1.19769225]
[1746748965866,0.60876,103180.0,103170.0,1.19769225]
[1746748966070,0.61276,103180.0,103170.0,1.19769225]
[1746748967353,0.67686,103180.0,103170.0,1.19769225]
[1746748967766,0.8707057,103180.0,103170.0,0.94769225]
[1746748967961,0.8407057,103180.0,103170.0,0.61769225]
[1746748970366,0.8407057,103180.0,103170.0,0.79769225]
[1746748970567,0.8407057,103180.0,103170.0,0.61769225]
[1746748970967,0.64686,103180.0,103170.0,0.61769225]
[1746748971166,0.8407057,103180.0,103170.0,0.61769225]
[1746748972669,0.64686,103180.0,103170.0,0.81769225]
[1746748973258,0.8407057,103180.0,103170.0,0.81769225]
[1746748973761,0.64686,103180.0,103170.0,0.81769225]
[1746748974067,0.58276,103180.0,103170.0,0.81769225]
[1746748974769,0.58276,103180.0,103170.0,1.19769225]
[1746748980276,0.7766057,103180.0,103170.0,1.19769225]
[1746748980474,0.58276,103180.0,103170.0,1.19769225]
[1746748982570,0.51296,103180.0,103170.0,1.19769225]
[1746748983274,0.57676,103180.0,103170.0,1.19769225]
[1746748983662,0.7706057,103180.0,103170.0,1.19769225]
[1746748983868,0.57676,103180.0,103170.0,1.19769225]
[1746748985073,0.51296,103180.0,103170.0,1.19769225]
[1746748985577,0.58226,103180.0,103170.0,1.19769225]
[1746748988280,0.64916,103180.0,103170.0,1.19769225]
[1746748993605,0.8430057,103180.0,103170.0,1.19769225]
[1746748993906,0.64916,103180.0,103170.0,1.19769225]
[1746748994094,0.8430057,103180.0,103170.0,1.19769225]
[1746748994405,0.8430057,103180.0,103170.0,0.78769225]
[1746748997705,0.8400057,103180.0,103170.0,0.78769225]
[1746748998005,0.8440057,103180.0,103170.0,0.61769225]
[1746748998890,0.8440057,103180.0,103170.0,0.80769225]
[1746748999093,0.8440057,103180.0,103170.0,0.61769225]
[1746748999701,0.8440057,103180.0,103170.0,0.78769225]
[1746749000207,0.8440057,103180.0,103170.0,0.61769225]
[1746749000504,0.8440057,103180.0,103170.0,0.79769225]
[1746749001206,0.8440057,103180.0,103170.0,0.61769225]
[1746749001407,0.8440057,103180.0,103170.0,0.78769225]
[1746749002911,1.2048057,103180.0,103170.0,0.78769225]
[1746749004507,1.2048057,103180.0,103170.0,0.17857735]
[1746749004713,1.2048057,103180.0,103170.0,0.37244175]
[1746749005115,1.2048057,103180.0,103170.0,0.21244175]
[1746749007206,1.2048057,103180.0,103170.0,0.37244175]
[1746749007503,1.2048057,103180.0,103170.0,0.56834175]
[1746749007916,1.30360889,103180.0,103170.0,0.56834175]
[1746749010815,1.2048057,103180.0,103170.0,0.56834175]
[1746749011120,1.2048057,103180.0,103170.0,0.37244175]
[1746749011915,1.2048057,103180.0,103170.0,0.50134175]
[1746749012117,1.2048057,103180.0,103170.0,0.37244175]
[1746749015423,1.2048057,103180.0,103170.0,0.50564175]
[1746749016410,1.2449457,103180.0,103170.0,0.69564175]
[1746749018513,1.2449457,103180.0,103170.0,0.50564175]
[1746749019014,1.3140457,103180.0,103170.0,0.50564175]
[1746749021123,1.1202,103180.0,103170.0,0.50564175]
[1746749021416,0.96406,103180.0,103170.0,0.78564175]
[1746749021614,0.88476,103180.0,103170.0,1.03564175]
[1746749023727,0.87876,103180.0,103170.0,1.03564175]
[1746749024026,0.88076,103180.0,103170.0,1.03564175]
[1746749027022,0.07401704,103190.0,103180.0,0.1938457]
[1746749027319,9e-08,103200.0,103190.0,0.1938269]
[1746749027620,9e-08,103200.0,103190.0,1.2750269]
[1746749027621,0.09636529,103200.0,103190.0,1.2750269]
[1746749027826,0.09636529,103200.0,103190.0,1.3719309]
[1746749028022,9e-08,103200.0,103190.0,1.3864609]
[1746749028325,9e-08,103200.0,103190.0,1.5464609]
[1746749028525,0.00200009,103200.0,103190.0,1.5464609]
[1746749029026,9e-08,103200.0,103190.0,1.5464609]
[1746749029219,0.08603565,103210.0,103200.0,0.1938081]
[1746749029420,0.36753111,103220.0,103210.0,0.1937893]
[1746749029421,0.14753111,103220.0,103210.0,0.1937893]
[1746749029625,0.28753111,103220.0,103210.0,1.6977693]
[1746749030325,0.28753111,103220.0,103210.0,1.8577693]
[1746749030729,0.28753111,103220.0,103210.0,1.8597693]
[1746749031626,0.12812851,103220.0,103210.0,1.9566533]
[1746749031821,0.32341963,103240.0,103230.0,0.1937518]
[1746749032013,0.28341963,103240.0,103230.0,1.5004518]
[1746749032218,0.28341963,103240.0,103230.0,1.9908518]
[1746749032624,0.25504893,103240.0,103230.0,2.0594518]
[1746749032822,0.16541623,103240.0,103230.0,2.0594518]
[1746749033025,0.00400003,103240.0,103230.0,2.0594518]
[1746749033233,0.00400003,103240.0,103230.0,2.2194518]
[1746749034226,0.00400003,103240.0,103230.0,2.22664632]
[1746749034716,0.11000003,103240.0,103230.0,2.32351432]
[1746749034914,3e-08,103240.0,103230.0,2.32351432]
[1746749035119,0.12000003,103240.0,103230.0,2.32351432]
[1746749035327,0.05886143,103240.0,103230.0,2.41047432]
[1746749035726,0.05886143,103240.0,103230.0,2.49927432]
[1746749035925,3e-08,103240.0,103230.0,2.49927432]
[1746749036121,0.01059054,103260.0,103250.0,0.1937142]
[1746749036330,4e-08,103260.0,103250.0,2.1291742]
[1746749036625,4e-08,103260.0,103250.0,2.2893222]
[1746749037124,0.00300004,103260.0,103250.0,2.4493222]
[1746749037521,4e-08,103260.0,103250.0,2.4493222]
[1746749037924,4e-08,103270.0,103260.0,0.1936955]
[1746749038126,4e-08,103270.0,103260.0,1.4934755]
[1746749038424,4e-08,103270.0,103260.0,1.5903155]
[1746749038629,4e-08,103270.0,103260.0,3.0903155]
[1746749039219,0.17,103300.0,103290.0,0.1936392]
[1746749039422,0.17,103300.0,103290.0,1.2396592]
[1746749039623,0.17,103300.0,103290.0,1.3702592]
[1746749039829,0.17,103300.0,103290.0,1.4369592]
[1746749040230,0.17,103300.0,103290.0,1.5969592]
[1746749040623,0.2371,103300.0,103290.0,1.5969592]
[1746749041526,0.2411,103300.0,103290.0,1.5302592]
[1746749042033,0.0446782,103300.0,103290.0,1.9477512]
[1746749042234,0.0003,103310.0,103300.0,0.1936205]
[1746749042433,0.0003,103310.0,103300.0,1.2842205]
[1746749043231,0.0003,103310.0,103300.0,1.4442205]
[1746749043726,0.0663,103310.0,103300.0,1.4442205]
[1746749044625,0.0003,103310.0,103300.0,1.4442205]
[1746749045321,0.0673,103310.0,103300.0,1.4442205]
[1746749047925,0.0673,103310.0,103300.0,1.8601205]
[1746749048933,0.0673,103310.0,103300.0,1.8746405]
[1746749049538,0.0673,103310.0,103300.0,1.8079405]
[1746749049834,0.1306,103310.0,103300.0,1.8079405]
[1746749050132,0.3242017,103310.0,103300.0,1.4471405]
[1746749050338,0.3242017,103310.0,103300.0,1.3740405]
[1746749050635,0.1955,103310.0,103300.0,1.3740405]
[1746749050932,0.7499017,103310.0,103300.0,0.59042]
[1746749051133,1.3465017,103310.0,103300.0,0.32532]
[1746749051332,0.1936205,103300.0,103290.0,0.00727551]
[1746749051532,1.0388325,103300.0,103290.0,0.1936392]
[1746749052540,1.0388325,103300.0,103290.0,0.1946392]
[1746749053139,0.7888325,103300.0,103290.0,0.1946392]
[1746749054338,0.7888325,103300.0,103290.0,0.20088187]
[1746749054637,0.7918325,103300.0,103290.0,0.20088187]
[1746749056631,0.6950205,103300.0,103290.0,0.20088187]
[1746749058432,0.1406,103300.0,103290.0,0.75620187]
[1746749058638,0.1406,103300.0,103290.0,1.12590187]
[1746749059043,0.1406,103300.0,103290.0,0.76510187]
[1746749059227,0.1906,103300.0,103290.0,1.42670187]
[1746749059432,0.123,103300.0,103290.0,1.81670187]
[1746749059839,0.0715795,103300.0,103290.0,1.81670187]
[1746749060842,0.2025795,103300.0,103290.0,1.81670187]
[1746749061138,0.2025795,103300.0,103290.0,1.81770187]
[1746749061539,0.1388795,103300.0,103290.0,1.81770187]
[1746749062544,0.1388795,103300.0,103290.0,1.96440462]
[1746749063431,0.3325,103300.0,103290.0,1.96440462]
[1746749063641,0.4009205,103300.0,103290.0,1.56360462]
[1746749063840,0.4692205,103300.0,103290.0,0.88768462]
[1746749064235,0.8100205,103300.0,103290.0,0.65938462]
[1746749064435,0.8770205,103300.0,103290.0,0.65938462]
[1746749064838,0.8770205,103300.0,103290.0,0.34858462]
[1746749065546,0.8770205,103300.0,103290.0,0.34758462]
[1746749065736,0.6834,103300.0,103290.0,0.53758462]
[1746749065932,0.8770205,103300.0,103290.0,0.53758462]
[1746749066243,0.8770205,103300.0,103290.0,0.34758462]
[1746749067044,0.8770205,103300.0,103290.0,0.20088187]
[1746749068048,0.8100205,103300.0,103290.0,0.40088187]
[1746749068237,0.8100205,103300.0,103290.0,0.69858187]
[1746749068539,0.8100205,103300.0,103290.0,0.49858187]
[1746749068845,0.8100205,103300.0,103290.0,0.97938187]
[1746749069345,0.8100205,103300.0,103290.0,0.81938187]
[1746749069845,0.8124405,103300.0,103290.0,0.81938187]
[1746749071941,0.8124405,103300.0,103290.0,0.64938187]
[1746749072141,0.8124405,103300.0,103290.0,0.51168187]
[1746749073945,0.8124405,103300.0,103290.0,0.5044392]
[1746749074852,0.8124405,103300.0,103290.0,0.1936392]
[1746749076739,0.8124405,103300.0,103290.0,0.3254392]
[1746749076944,0.8124405,103300.0,103290.0,0.39517918]
[1746749080050,0.1936392,103290.0,103280.0,0.3108]
[1746749080255,0.9181392,103290.0,103280.0,0.740158]
[1746749080460,0.9845392,103290.0,103280.0,0.740158]
[1746749081149,0.9845392,103290.0,103280.0,0.875658]
[1746749081947,0.9845392,103290.0,103280.0,0.740158]
[1746749082257,0.9845392,103290.0,103280.0,0.2357]
[1746749082457,0.193658,103280.0,103270.0,0.3108]
[1746749082641,0.907838,103280.0,103270.0,0.6808]
[1746749082845,1.004666,103280.0,103270.0,0.37]
[1746749083257,1.004666,103280.0,103270.0,0.5636767]
[1746749083855,1.004666,103280.0,103270.0,0.5656767]
[1746749084551,1.004666,103280.0,103270.0,0.5636767]
[1746749085757,1.014666,103280.0,103270.0,0.5536767]
[1746749086754,1.014666,103280.0,103270.0,0.36]
[1746749086962,1.014666,103280.0,103270.0,0.5536767]
[1746749089754,1.014666,103280.0,103270.0,0.36]
[1746749089949,1.014666,103280.0,103270.0,0.5536767]
[1746749091554,1.014666,103280.0,103270.0,0.7494767]
[1746749092160,1.174666,103280.0,103270.0,0.7494767]
[1746749092857,1.174666,103280.0,103270.0,0.4248]
[1746749094867,1.174666,103280.0,103260.0,0.78173272]
[1746749094868,0.1936767,103270.0,103260.0,0.00096842]
[1746749095053,1.1358167,103270.0,103260.0,0.16096842]
[1746749095254,1.23265671,103270.0,103260.0,0.44096842]
[1746749095462,0.1936955,103260.0,103250.0,0.0684]
[1746749095656,0.0484326,103250.0,103230.0,0.44866322]
[1746749095959,1.156393,103240.0,103230.0,0.1238887]
[1746749096164,1.446393,103240.0,103230.0,0.1093687]
[1746749096357,1.605961,103240.0,103230.0,0.0409687]
[1746749096552,1.51896653,103240.0,103230.0,0.0409687]
[1746749096758,1.61583453,103240.0,103230.0,0.0409687]
[1746749097169,1.61583453,103240.0,103230.0,0.0459687]
[1746749097655,1.61583453,103240.0,103230.0,0.0409687]
[1746749097857,1.61583453,103240.0,103230.0,0.0429687]
[1746749098463,1.61583453,103240.0,103230.0,0.0439687]
[1746749099567,1.61983453,103240.0,103230.0,0.0429687]
[1746749099970,1.61979453,103240.0,103230.0,0.2367205]
[1746749100158,1.45979453,103240.0,103230.0,0.1700687]
[1746749101073,0.1937705,103220.0,103210.0,0.3821067]
[1746749101261,1.2222905,103220.0,103210.0,0.2153267]
[1746749101567,1.3520905,103220.0,103210.0,0.409116]
[1746749101860,1.3520905,103220.0,103210.0,0.2008067]
[1746749102066,1.3520905,103220.0,103210.0,0.0029067]
[1746749102265,1.6099745,103220.0,103210.0,0.0029067]
[1746749104364,0.1937893,103210.0,103200.0,0.10096898]
[1746749104562,0.8193893,103210.0,103200.0,0.10096898]
[1746749104764,0.91628531,103210.0,103200.0,0.16766898]
[1746749105073,1.07628531,103210.0,103200.0,0.16766898]
[1746749105365,0.9793893,103210.0,103200.0,0.42717708]
[1746749105565,0.9121893,103210.0,103200.0,0.44269708]
[1746749106163,0.7521893,103210.0,103200.0,0.44169708]
[1746749106367,0.8012293,103210.0,103200.0,0.44169708]
[1746749106572,0.7641893,103210.0,103200.0,0.44169708]
[1746749106873,0.9415493,103210.0,103200.0,0.44169708]
[1746749107170,0.9415493,103210.0,103200.0,0.44369708]
[1746749107569,0.9215493,103210.0,103200.0,0.44169708]
[1746749107865,0.9315493,103210.0,103200.0,0.44169708]
[1746749108069,0.9415493,103210.0,103200.0,0.52169708]
[1746749108260,0.59148,103210.0,103200.0,0.44169708]
[1746749108771,0.7852693,103210.0,103200.0,0.44169708]
[1746749109475,0.59148,103210.0,103200.0,0.44169708]
[1746749109975,0.58948,103210.0,103200.0,0.44169708]
[1746749110175,0.59048,103210.0,103200.0,0.60169708]
[1746749110472,0.7842693,103210.0,103200.0,0.60169708]
[1746749110677,0.59048,103210.0,103200.0,0.60169708]
[1746749110966,0.5018,103210.0,103200.0,0.60169708]
[1746749111173,0.59044,103210.0,103200.0,0.60169708]
[1746749111775,0.7842293,103210.0,103200.0,0.60169708]
[1746749112177,0.8461293,103210.0,103200.0,0.44169708]
[1746749113879,0.8461293,103210.0,103200.0,0.75249708]
[1746749116083,0.7842293,103210.0,103200.0,0.75249708]
[1746749116490,0.59044,103210.0,103200.0,0.75249708]
[1746749116689,0.7842293,103210.0,103200.0,0.75249708]
[1746749117095,0.59044,103210.0,103200.0,0.75249708]
[1746749117390,0.7842293,103210.0,103200.0,0.75249708]
[1746749117596,0.59044,103210.0,103200.0,0.75249708]
[1746749117783,0.7842293,103210.0,103200.0,0.75249708]
[1746749118192,0.59044,103210.0,103200.0,0.75249708]
[1746749118784,0.7842293,103210.0,103200.0,0.75249708]
[1746749121287,0.8368293,103210.0,103200.0,0.75249708]
[1746749122589,0.8368293,103210.0,103200.0,0.55868898]
[1746749123095,0.8890293,103210.0,103200.0,0.75249708]
[1746749123793,0.8003893,103210.0,103200.0,0.75249708]
[1746749123995,0.8890293,103210.0,103200.0,0.75249708]
[1746749124293,0.8890293,103210.0,103200.0,0.55868898]
[1746749124488,0.8003893,103210.0,103200.0,0.55868898]
[1746749124689,0.8890293,103210.0,103200.0,0.55868898]
[1746749125188,0.8990293,103210.0,103200.0,0.47846898]
[1746749125591,0.8990293,103210.0,103200.0,0.52926898]
[1746749125791,0.8990293,103210.0,103200.0,0.21846898]
[1746749126395,0.8990293,103210.0,103200.0,0.10096898]
[1746749126600,0.99592531,103210.0,103200.0,0.10096898]
[1746749127091,1.15592531,103210.0,103200.0,0.10096898]
[1746749129094,0.1938457,103180.0,103170.0,0.34444409]
[1746749129393,0.94266,103180.0,103170.0,0.81884409]
[1746749129596,1.1365057,103180.0,103170.0,0.83336409]